bitfinex-derivatives/quotes_SOLF0:USTF0_20240905
["timestamp","ask_amount","ask_price","bid_price","bid_amount"]
[1725547900418,0.05658575,132.23,132.2,0.05433786]
[1725547900717,0.05658575,132.23,132.21,3.7819]
[1725547900920,0.05658575,132.23,132.2,0.05433786]
[1725547901917,0.05658575,132.23,132.21,3.7817]
[1725547902117,0.05658575,132.23,132.2,0.05433786]
[1725547902514,3.7819,132.22,132.2,0.05433786]
[1725547902822,0.05658575,132.23,132.2,0.05433786]
[1725547903525,1.4018,132.27,132.0,145.59567267]
[1725547903526,39.17,132.21,132.09,39.17]
[1725547903918,3.70846893,132.2,132.11,39.17]
[1725547904220,39.17,132.23,132.11,39.17]
[1725547904619,39.17,132.21,132.11,39.17]
[1725547904823,0.05449744,132.18,132.16,0.04808572]
[1725547905117,3.90297999,132.18,132.16,0.04808572]
[1725547905620,7.68587999,132.18,132.16,0.04808572]
[1725547905822,0.05449744,132.18,132.16,0.04808572]
[1725547906220,0.05449744,132.18,132.17,3.7831]
[1725547906816,0.05449744,132.18,132.16,0.04808572]
[1725547907918,3.83759744,132.18,132.14,3.7839]
[1725547908120,39.17,132.17,132.08,5.23]
[1725547908324,39.17,132.19,132.08,5.23]
[1725547908825,3.80251479,132.2,132.09,39.17]
[1725547909122,0.05639335,132.16,132.13,0.05236515]
[1725547909317,0.05054841,132.16,132.13,0.05014273]
[1725547909722,12.0,132.15,132.13,0.05014273]
[1725547910021,12.0,132.15,132.0,95.06177267]
[1725547910022,3.7849,132.11,132.02,3.77460629]
[1725547910224,40.5176,132.14,132.01,41.9671]
[1725547910414,44.27365693,132.14,132.02,3.78142035]
[1725547910613,44.27365693,132.14,132.01,41.9671]
[1725547910812,0.05252259,132.09,132.06,0.05484831]
[1725547911021,0.05252259,132.09,132.06,0.05585923]
[1725547912114,0.05252259,132.09,132.06,2.75635923]
[1725547912924,0.05252259,132.09,132.06,0.05585923]
[1725547914227,0.05252259,132.09,132.08,3.7857]
[1725547914424,0.8987,132.18,132.07,6.57476162]
[1725547914425,40.0687,132.18,132.07,6.57476162]
[1725547914625,43.8692452,132.18,132.07,6.57476162]
[1725547914830,1.3035,132.23,132.09,39.17]
[1725547914831,39.17,132.2,132.09,39.17]
[1725547915025,40.0687,132.17,132.05,39.17]
[1725547915228,39.17,132.17,132.05,39.17]
[1725547915528,0.05769177,132.12,132.1,0.05810197]
[1725547915722,3.8259199,132.12,132.1,0.05810197]
[1725547915927,39.22557085,132.12,132.1,0.05810197]
[1725547916432,0.05557085,132.12,132.1,0.05810197]
[1725547916628,39.17,132.11,132.1,0.05810197]
[1725547917020,0.05557085,132.12,132.1,0.05810197]
[1725547918327,3.83349164,132.12,132.1,0.05810197]
[1725547918526,43.00349164,132.12,132.1,0.05810197]
[1725547919430,3.93243532,132.12,132.1,0.05810197]
[1725547919835,0.05557085,132.12,132.1,0.05810197]
[1725547920433,39.17,132.18,132.1,0.05810197]
[1725547920636,0.8987,132.22,132.1,0.05810197]
[1725547920637,3.8571715,132.19,132.14,3.7838]
[1725547920831,3.87256757,132.26,132.12,39.17]
[1725547921037,42.9505,132.27,132.22,3.7816]
[1725547921336,42.9505,132.27,132.14,39.17]
[1725547921337,43.04156251,132.27,132.14,39.17]
[1725547921538,0.04910104,132.22,132.19,0.05105256]
[1725547921740,0.04910104,132.22,132.19,0.05351993]
[1725547922635,0.04910104,132.22,132.21,3.782]
[1725547922834,39.17,132.29,132.17,44.595]
[1725547923035,3.81403045,132.29,132.19,39.17]
[1725547923236,39.17,132.31,132.19,39.17]
[1725547923434,39.17,132.29,132.17,44.595]
[1725547923749,39.22036427,132.24,132.22,0.05632729]
[1725547923945,39.17,132.24,132.17,2.6552]
[1725547924246,19.17,132.22,132.19,0.05283336]
[1725547924443,39.17,132.2,132.19,0.05283336]
[1725547925241,0.04979707,132.21,132.19,0.05283336]
[1725547925837,0.04979707,132.21,132.2,3.7823]
[1725547926038,39.17,132.29,132.17,2.7303]
[1725547926245,39.17,132.29,132.17,41.9403]
[1725547926246,39.21,132.29,132.17,41.9403]
[1725547926447,3.7803,132.27,132.17,41.9403]
[1725547926841,43.05612473,132.29,132.17,41.9403]
[1725547927148,43.05612473,132.29,132.22,0.05095928]
[1725547927149,0.05110737,132.24,132.22,0.05095928]
[1725547927340,0.04959739,132.24,132.22,3.88535225]
[1725547927541,0.04959739,132.24,132.23,3.7814]
[1725547927943,0.04959739,132.24,132.22,0.05095928]
[1725547929750,0.04959739,132.24,132.23,3.7814]
[1725547930048,0.04959739,132.24,132.22,0.05095928]
[1725547930049,0.04959739,132.24,132.22,3.83255928]
[1725547930749,0.04959739,132.24,132.23,3.7814]
[1725547931045,39.21,132.31,132.22,0.05095928]
[1725547931244,41.5128,132.33,132.21,39.21]
[1725547931445,42.92321582,132.33,132.21,39.21]
[1725547931838,3.71321582,132.33,132.23,39.21]
[1725547932047,2.3091,132.38,132.27,0.05799212]
[1725547932048,39.21,132.37,132.27,0.05799212]
[1725547932343,39.21,132.37,132.31,3.82673467]
[1725547932547,39.21,132.32,132.31,0.04773467]
[1725547932847,43.07562134,132.32,132.31,0.04773467]
[1725547933351,39.21,132.32,132.31,0.04773467]
[1725547933743,3.84746933,132.33,132.31,0.04773467]
[1725547933943,39.21,132.37,132.31,0.04773467]
[1725547934348,2.3091,132.38,132.31,0.04773467]
[1725547934349,39.21,132.35,132.31,0.04773467]
[1725547934546,43.02948498,132.35,132.31,0.04773467]
[1725547934851,3.7788,132.33,132.31,0.04773467]
[1725547935053,43.02948498,132.35,132.31,0.04773467]
[1725547935252,39.21,132.32,132.06,39.21]
[1725547935550,39.21,132.32,132.22,5.3629]
[1725547935741,3.78,132.28,132.22,5.3629]
[1725547935943,39.21,132.28,132.22,5.3629]
[1725547936156,39.21,132.28,132.18,3.85482894]
[1725547936338,0.05511323,132.26,132.24,0.05178342]
[1725547936544,3.781,132.25,132.24,0.05178342]
[1725547936745,39.21,132.26,132.18,5.4039]
[1725547937153,39.21,132.24,132.14,2.7878]
[1725547937543,42.98769342,132.24,132.14,2.7878]
[1725547937741,0.05117152,132.2,132.18,0.05242612]
[1725547938346,0.05117152,132.2,132.19,3.7826]
[1725547938544,0.05117152,132.2,132.18,0.05242612]
[1725547938545,3.87855656,132.27,132.17,39.21]
[1725547938749,3.85925838,132.29,132.19,39.21]
[1725547939053,3.85206886,132.3,132.21,39.21]
[1725547939252,39.21,132.32,132.21,39.21]
[1725547939449,39.25783221,132.28,132.25,0.04797939]
[1725547939756,39.26104957,132.28,132.25,0.04797939]
[1725547939952,0.05104957,132.28,132.25,0.04797939]
[1725547942857,0.05104957,132.28,132.26,3.7805]
[1725547943154,0.05104957,132.28,132.25,0.04797939]
[1725547945351,0.05104957,132.28,132.27,3.7803]
[1725547946052,7.53285752,132.33,132.26,3.69552836]
[1725547946255,3.7787,132.33,132.29,3.7797]
[1725547946459,3.7787,132.33,132.26,3.82905155]
[1725547946658,3.83775136,132.34,132.23,42.0239]
[1725547946964,39.21,132.38,132.26,39.21]
[1725547947153,3.7785509,132.43,132.31,0.05010027]
[1725547947154,39.21,132.4,132.31,0.05010027]
[1725547947360,3.7785509,132.43,132.31,0.05010027]
[1725547947361,3.7785509,132.43,132.34,0.05614549]
[1725547947549,39.21,132.45,132.37,0.05136093]
[1725547947749,42.98080064,132.47,132.4,0.05420163]
[1725547947750,3.7765,132.41,132.4,0.05420163]
[1725547947952,39.21,132.43,132.39,0.05528908]
[1725547948257,39.21,132.43,132.4,0.05352614]
[1725547948454,42.98080064,132.47,132.4,0.05809448]
[1725547948455,39.21,132.41,132.4,0.05809448]
[1725547948854,42.9863,132.41,132.4,0.05809448]
[1725547949163,3.7763,132.41,132.4,0.05809448]
[1725547950361,42.9863,132.41,132.4,0.05809448]
[1725547950565,3.7776,132.37,132.31,9.02076529]
[1725547950757,3.7776,132.37,132.27,5.35]
[1725547950758,39.21,132.36,132.27,5.35]
[1725547950957,3.71391223,132.37,132.27,5.35]
[1725547950958,39.21,132.33,132.27,5.35]
[1725547951157,3.779,132.32,132.27,5.35]
[1725547951458,39.21,132.33,132.26,3.7803]
[1725547951657,39.21,132.33,132.28,0.05550213]
[1725547951658,3.82802876,132.31,132.28,0.05550213]
[1725547951857,0.04862876,132.31,132.28,0.05550213]
[1725547952963,0.04862876,132.31,132.29,3.7797]
[1725547953167,0.04862876,132.31,132.28,0.05550213]
[1725547953362,0.04862876,132.31,132.29,3.7796]
[1725547953562,0.04862876,132.31,132.28,0.05550213]
[1725547953964,40.6617,132.4,132.29,39.21]
[1725547953965,3.7772,132.38,132.29,39.21]
[1725547954163,3.8173913,132.37,132.3,5.5081]
[1725547954357,40.6617,132.4,132.34,3.7781]
[1725547954562,44.46235013,132.4,132.3,5.5081]
[1725547954968,44.46235013,132.4,132.34,3.7782]
[1725547955275,44.46235013,132.4,132.36,0.05768402]
[1725547955470,44.46235013,132.4,132.3,6.5408]
[1725547955471,39.21,132.38,132.3,6.5408]
[1725547955658,39.21,132.38,132.3,2.7616]
[1725547955859,39.21,132.32,132.06,77.0719]
[1725547956056,48.2154,132.4,132.17,47.1734]
[1725547956057,3.7801,132.28,132.17,47.1734]
[1725547956267,3.7443302,132.29,132.17,51.03037006]
[1725547956459,3.7443302,132.29,132.24,3.781]
[1725547956764,0.05440657,132.28,132.25,0.04797526]
[1725547956970,0.05447997,132.28,132.25,0.0508893]
[1725547957157,3.83467997,132.28,132.25,0.0508893]
[1725547957663,0.05447997,132.28,132.25,3.8316893]
[1725547958063,0.05447997,132.28,132.26,3.7806]
[1725547958264,0.05447997,132.28,132.25,0.0508893]
[1725547958459,0.05447997,132.28,132.25,5.3450893]
[1725547958662,0.05447997,132.28,132.27,3.7803]
[1725547958868,0.05447997,132.28,132.25,7.9701893]
[1725547959164,0.05447997,132.28,132.25,0.0508893]
[1725547959363,3.7803,132.27,132.25,0.0508893]
[1725547959761,0.05447997,132.28,132.25,0.0508893]
[1725547960268,39.26447997,132.28,132.18,2.8321]
[1725547960459,1.4543,132.32,132.18,2.8321]
[1725547960460,39.21,132.25,132.18,2.8321]
[1725547960659,39.21,132.25,132.16,5.3126]
[1725547960660,43.05336575,132.25,132.17,3.7829]
[1725547960867,43.05336575,132.25,132.16,5.3126]
[1725547961066,3.7819,132.22,132.16,5.3126]
[1725547961264,0.05596698,132.2,132.18,0.05362194]
[1725547961463,0.05235022,132.2,132.18,0.05362194]
[1725547961668,0.05235022,132.2,132.19,3.7826]
[1725547961867,0.05235022,132.2,132.18,0.05362194]
[1725547962877,0.05235022,132.2,132.19,3.7826]
[1725547963371,3.7816,132.23,132.19,3.7823]
[1725547963670,3.7816,132.23,132.17,2.8321]
[1725547964074,3.7811,132.25,132.17,2.8321]
[1725547964274,0.05693104,132.22,132.2,0.04818363]
[1725547964670,39.21,132.3,132.2,0.04818363]
[1725547964873,39.21,132.3,132.19,39.21]
[1725547965777,39.21,132.3,132.24,3.781]
[1725547965778,3.7804,132.27,132.24,3.781]
[1725547966085,39.21,132.3,132.24,0.05083444]
[1725547966279,3.7801,132.28,132.25,3.7807]
[1725547966478,39.21,132.3,132.24,0.05083444]
[1725547968876,39.21,132.32,132.24,0.05083444]
[1725547969076,3.78,132.28,132.27,0.05569931]
[1725547969380,3.7806354,132.28,132.17,2.8321]
[1725547969572,39.21,132.27,132.18,9.13896505]
[1725547969774,43.04093797,132.27,132.18,9.13896505]
[1725547970373,43.04093797,132.27,132.22,3.7816]
[1725547970573,43.04093797,132.27,132.18,9.13896505]
[1725547970574,0.05498429,132.24,132.21,0.0486587]
[1725547971373,3.7816,132.23,132.21,0.0486587]
[1725547971778,0.05498429,132.24,132.21,0.0486587]
[1725547971975,3.83618429,132.24,132.21,3.8305587]
[1725547972777,0.05498429,132.24,132.21,0.0486587]
[1725547972972,0.05498429,132.24,132.23,3.7814]
[1725547974371,0.05498429,132.24,132.22,3.7816]
[1725547974581,0.05498429,132.24,132.21,0.0486587]
[1725547975779,3.7817,132.22,132.21,0.0486587]
[1725547976373,3.7817,132.23,132.21,0.0486587]
[1725547976580,0.05498429,132.24,132.21,0.0486587]
[1725547977580,0.05498429,132.24,132.22,3.7815]
[1725547977781,0.05498429,132.24,132.21,0.0486587]
[1725547981575,39.26498429,132.24,132.21,0.0486587]
[1725547981790,3.7817,132.22,132.21,0.0486587]
[1725547983281,39.26498429,132.24,132.21,0.0486587]
[1725547983282,3.87619191,132.23,132.21,0.0486587]
[1725547984401,3.90998656,132.24,132.21,0.0486587]
[1725547985285,0.05498429,132.24,132.21,0.0486587]
[1725547985785,0.05498429,132.24,132.22,3.7814]
[1725547986283,0.05498429,132.24,132.23,3.7814]
[1725547986481,3.69505136,132.3,132.22,2.7656]
[1725547986682,39.21,132.34,132.23,39.21]
[1725547986881,3.7788,132.33,132.23,39.21]
[1725547987279,3.7793,132.31,132.27,3.7802]
[1725547987488,3.7793,132.31,132.28,0.05453088]
[1725547987788,3.74460621,132.3,132.28,0.05453088]
[1725547987989,2.2985,132.36,132.28,0.05453088]
[1725547987990,39.21,132.32,132.28,0.05443259]
[1725547988293,39.21,132.32,132.29,0.052927]
[1725547988481,3.7799,132.29,132.22,2.7656]
[1725547988681,3.72493558,132.28,132.24,0.05380819]
[1725547988884,39.21,132.27,132.24,0.05380819]
[1725547989081,39.21,132.27,132.24,0.05458835]
[1725547989391,3.7809,132.25,132.24,0.05458835]
[1725547989685,42.93417902,132.27,132.24,0.05458835]
[1725547989994,3.7809,132.25,132.24,0.05458835]
[1725547990288,39.21,132.29,132.24,0.05458835]
[1725547990489,9.8544,132.36,132.25,0.05454181]
[1725547990490,39.21,132.31,132.25,0.05454181]
[1725547990691,39.21,132.31,132.27,0.05099844]
[1725547990892,39.21,132.31,132.18,6.43846404]
[1725547990893,3.75529661,132.3,132.28,0.05276174]
[1725547991088,7.53489661,132.3,132.28,0.05629966]
[1725547991492,39.21,132.31,132.28,0.05629966]
[1725547991795,39.21,132.33,132.28,0.05629966]
[1725547991990,39.21,132.33,132.29,0.04941937]
[1725547992193,39.21,132.33,132.22,5.3838]
[1725547992490,39.21,132.33,132.26,0.05678108]
[1725547992691,3.7793,132.31,132.27,3.7802]
[1725547993185,7.50794827,132.3,132.26,0.05678108]
[1725547993393,3.7795,132.3,132.26,0.05678108]
[1725547993588,7.59453327,132.3,132.26,0.05678108]
[1725547993991,3.78,132.29,132.26,0.05678108]
[1725547994198,3.81503327,132.3,132.26,0.05678108]
[1725547994490,3.7803,132.27,132.26,0.05678108]
[1725547994788,7.61121349,132.27,132.26,0.05678108]
[1725547994981,3.7814,132.24,132.2,3.7822]
[1725547995182,3.77949183,132.27,132.2,3.72013006]
[1725547995386,39.21,132.3,132.18,41.8088]
[1725547995590,3.7795,132.3,132.22,39.21]
[1725547995787,39.21,132.34,132.23,2.6667]
[1725547996091,0.0563999,132.3,132.27,0.05545806]
[1725547996294,3.7801,132.28,132.27,0.05545806]
[1725547996688,3.79652042,132.28,132.27,0.05545806]
[1725547996885,0.0563999,132.3,132.27,0.05545806]
[1725547997294,3.78,132.28,132.27,0.05545806]
[1725547997785,0.0563999,132.3,132.27,0.05545806]
[1725547998283,39.21,132.39,132.27,0.05545806]
[1725547998483,39.21,132.37,132.25,3.77382753]
[1725547998792,3.7786,132.34,132.3,3.7792]
[1725547998985,43.07157337,132.37,132.27,39.21]
[1725547999181,43.07157337,132.37,132.24,44.8417]
[1725547999400,3.7794,132.3,132.29,0.05447081]
[1725547999598,39.21,132.3,132.28,0.0575151]
[1725547999795,3.74366355,132.29,132.28,0.0575151]
[1725547999992,3.7799,132.29,132.27,0.05454242]
[1725548000494,7.50123319,132.3,132.27,0.05454242]
[1725548000693,39.21,132.32,132.27,0.05454242]
[1725548000886,3.76256903,132.31,132.27,0.05454242]
[1725548001087,3.7796,132.3,132.27,0.05454242]
[1725548001996,3.7796,132.3,132.27,3.83484242]
[1725548002402,39.21,132.34,132.29,3.7795]
[1725548002692,39.21,132.34,132.24,5.6317]
[1725548002693,39.21,132.34,132.3,0.05511655]
[1725548002891,3.7791,132.31,132.3,0.05511655]
[1725548003092,42.89863926,132.34,132.3,0.05511655]
[1725548003792,3.7786,132.33,132.3,0.05511655]
[1725548004301,3.779,132.32,132.3,0.05511655]
[1725548004797,3.7791,132.32,132.3,0.05511655]
[1725548005300,3.7786,132.33,132.3,0.05511655]
[1725548005798,3.779,132.32,132.3,0.05511655]
[1725548006491,3.7787,132.33,132.3,0.05511655]
[1725548007102,39.21,132.36,132.3,0.05511655]
[1725548007600,39.21,132.36,132.31,3.7789]
[1725548007897,3.70727465,132.36,132.31,3.7789]
[1725548008098,32.68,132.37,132.3,0.05511655]
[1725548008099,32.68,132.37,132.32,3.7786]
[1725548008298,32.68,132.37,132.33,0.04809894]
[1725548008499,7.49273666,132.36,132.33,0.04809894]
[1725548008703,7.49273666,132.36,132.33,3.8337361]
[1725548009493,32.68,132.39,132.33,3.8337361]
[1725548009494,3.7775,132.37,132.33,3.8337361]
[1725548009696,3.81190303,132.36,132.33,0.0553361]
[1725548009901,32.68,132.35,132.33,0.0553361]
[1725548010100,3.7994273,132.34,132.33,0.05659733]
[1725548010401,32.68,132.37,132.32,0.05183118]
[1725548010601,3.7782,132.35,132.33,0.05682011]
[1725548010799,36.53386686,132.35,132.27,5.4871]
[1725548011105,3.78,132.28,132.24,3.7811]
[1725548011301,3.78,132.28,132.21,38.0304]
[1725548011602,32.68,132.31,132.21,38.0304]
[1725548011801,32.68,132.29,132.21,5.3504]
[1725548012103,34.2419,132.34,132.24,0.05367628]
[1725548012104,39.28071639,132.26,132.24,0.05367628]
[1725548012308,63.4519,132.34,132.24,0.04808009]
[1725548012309,39.23,132.29,132.24,0.04808009]
[1725548012505,0.04953999,132.26,132.25,0.05305114]
[1725548012703,7.66383901,132.26,132.25,0.05305114]
[1725548012905,43.11323901,132.26,132.19,5.3854]
[1725548013302,3.7811,132.25,132.2,3.7821]
[1725548013506,43.11323901,132.26,132.2,3.7821]
[1725548013906,3.7809,132.25,132.22,0.04892625]
[1725548014211,43.11323901,132.26,132.22,0.04892625]
[1725548014407,43.11323901,132.26,132.11,39.23]
[1725548014408,39.23,132.24,132.11,39.23]
[1725548014611,39.23,132.21,132.11,39.23]
[1725548015205,42.98236437,132.26,132.13,39.23]
[1725548015409,42.98236437,132.26,132.15,39.23]
[1725548015607,0.04852178,132.21,132.18,0.05709308]
[1725548015810,0.04852178,132.21,132.18,0.05717423]
[1725548016505,0.04852178,132.21,132.2,3.7823]
[1725548017507,3.7809,132.25,132.21,3.7819]
[1725548017811,3.7801,132.28,132.19,39.23]
[1725548018008,7.62404157,132.28,132.2,2.7042]
[1725548018206,12.89296575,132.27,132.24,3.7809]
[1725548018407,12.89296575,132.26,132.2,2.7042]
[1725548018607,0.04847661,132.24,132.22,0.05703093]
[1725548018814,12.89296575,132.23,132.22,0.05703093]
[1725548019008,0.6261,132.31,132.21,39.23]
[1725548019613,4.4935619,132.31,132.21,39.23]
[1725548020004,3.8674619,132.31,132.21,39.23]
[1725548020313,0.05076269,132.27,132.25,0.05372923]
[1725548020518,39.23,132.29,132.17,41.8487]
[1725548020713,11.36391209,132.26,132.17,41.8487]
[1725548021007,11.36391209,132.25,132.17,41.8487]
[1725548021211,11.36391209,132.24,132.17,41.8487]
[1725548021409,11.36391209,132.23,132.21,3.782]
[1725548021611,11.36391209,132.22,132.21,3.83152352]
[1725548022004,0.05328224,132.23,132.22,3.7817]
[1725548022218,13.19808844,132.22,132.17,41.8487]
[1725548022409,13.25137068,132.23,132.17,41.8487]
[1725548022606,13.19808844,132.22,132.17,41.8487]
[1725548022809,0.05328224,132.23,132.21,3.782]
[1725548023111,10.54186429,132.22,132.21,3.83407631]
[1725548023505,10.54186429,132.22,132.21,0.05207631]
[1725548024814,10.54186429,132.22,132.21,3.83407631]
[1725548026013,0.05328224,132.23,132.22,3.7817]
[1725548026207,42.0034,132.31,132.21,39.23]
[1725548026208,45.87682059,132.31,132.21,39.23]
[1725548026411,6.64682059,132.31,132.21,39.23]
[1725548026618,6.64682059,132.31,132.24,39.23]
[1725548026808,6.64682059,132.31,132.25,2.695]
[1725548027213,0.05170885,132.29,132.27,0.04974418]
[1725548027621,3.78,132.28,132.27,0.04974418]
[1725548028919,0.05170885,132.29,132.27,0.04974418]
[1725548029921,0.05170885,132.29,132.28,3.78]
[1725548030418,0.05170885,132.29,132.27,0.04974418]
[1725548030810,3.78,132.28,132.27,0.04974418]
[1725548031020,0.05170885,132.29,132.27,0.04974418]
[1725548031420,3.83170885,132.29,132.27,0.04974418]
[1725548031623,0.05170885,132.29,132.27,0.04974418]
[1725548032422,3.85815556,132.29,132.27,0.04974418]
[1725548032620,39.23,132.29,132.18,2.7644]
[1725548032814,39.23,132.27,132.18,2.7644]
[1725548033217,3.7812,132.24,132.2,3.7821]
[1725548033622,3.7812,132.24,132.18,2.7644]
[1725548033924,0.05688073,132.22,132.21,3.782]
[1725548035318,0.05688073,132.22,132.2,0.05661139]
[1725548036023,3.83868073,132.22,132.2,0.05661139]
[1725548036221,0.05688073,132.22,132.2,0.05661139]
[1725548036928,2.7006,132.28,132.2,32.7]
[1725548037523,3.7803,132.27,132.23,3.7812]
[1725548037821,3.70317727,132.27,132.19,2.6125]
[1725548038017,3.82996686,132.24,132.22,0.05732391]
[1725548038414,0.04866686,132.24,132.22,0.05732391]
[1725548039121,3.7814,132.23,132.22,0.05732391]
[1725548039327,0.04866686,132.24,132.18,3.7828]
[1725548039928,3.7819,132.22,132.18,3.7828]
[1725548040128,39.23,132.25,132.14,3.87040289]
[1725548040327,3.83636805,132.21,132.19,0.04921653]
[1725548040526,3.83991475,132.21,132.19,0.04921653]
[1725548040825,3.7823,132.2,132.19,0.04921653]
[1725548041221,0.05416805,132.21,132.19,0.04921653]
[1725548041620,0.05416805,132.21,132.11,44.6987]
[1725548041824,3.7828,132.19,132.14,3.7839]
[1725548042029,6.55422596,132.21,132.14,3.7839]
[1725548042334,39.23,132.2,132.13,3.7843]
[1725548042532,3.7829,132.18,132.13,3.79096408]
[1725548042723,0.05216211,132.17,132.14,0.05396896]
[1725548043236,0.05216211,132.17,132.04,39.23]
[1725548043237,39.23,132.15,132.04,39.23]
[1725548043535,3.7848,132.12,132.05,2.8429]
[1725548043829,39.23,132.13,132.05,2.8429]
[1725548044036,39.23,132.08,131.85,227.0]
[1725548044228,0.05743935,131.98,131.95,0.04785175]
[1725548044431,0.04783978,131.98,131.95,48.45395211]
[1725548044736,39.23,132.11,131.97,39.23]
[1725548044932,39.23,132.11,132.0,39.23]
[1725548045126,43.03788177,132.11,132.01,2.8429]
[1725548045429,3.80788177,132.11,132.01,2.8429]
[1725548045626,42.018,132.12,132.02,3.72716938]
[1725548045830,0.05493688,132.08,132.06,0.05412017]
[1725548046231,0.05493688,132.08,132.06,3.84032017]
[1725548046929,0.05493688,132.08,132.07,3.786]
[1725548048436,39.23,132.16,132.12,3.7846]
[1725548048628,39.23,132.16,132.07,39.23]
[1725548048629,2.811,132.17,132.08,2.7129]
[1725548049129,2.811,132.17,132.09,39.23]
[1725548049329,42.0531,132.18,132.09,39.23]
[1725548049330,2.8231,132.18,132.09,39.23]
[1725548049534,0.05177885,132.15,132.13,3.7841]
[1725548049729,0.05177885,132.15,132.12,0.0548917]
[1725548050130,0.05177885,132.15,132.12,3.8392917]
[1725548050333,0.05177885,132.15,132.12,0.0548917]
[1725548050536,2.811,132.23,132.13,39.23]
[1725548051043,42.0563,132.26,132.15,39.23]
[1725548051233,3.7811,132.25,132.16,2.7129]
[1725548051431,2.8263,132.26,132.17,39.23]
[1725548051633,0.05570576,132.23,132.2,0.05597319]
[1725548052337,0.05570576,132.23,132.22,3.7817]
[1725548052936,6.5204,132.29,132.23,3.7813]
[1725548053125,10.34286102,132.29,132.23,3.7813]
[1725548053330,6.56286102,132.29,132.23,3.7813]
[1725548053528,6.56286102,132.29,132.22,3.7817]
[1725548053927,0.04956023,132.27,132.24,0.05768442]
[1725548054141,0.0488514,132.27,132.24,0.05768442]
[1725548054639,39.2788514,132.27,132.24,0.05768442]
[1725548054830,2.7282,132.26,132.17,7.58482668]
[1725548055131,39.23,132.24,132.16,5.3207]
[1725548055337,3.7819,132.22,132.17,3.783]
[1725548055529,39.23,132.24,132.17,3.77108589]
[1725548055735,0.05005086,132.22,132.19,0.05323439]
[1725548056934,0.05005086,132.22,132.19,3.83563439]
[1725548057137,0.05005086,132.22,132.19,0.05323439]
[1725548058130,0.05005086,132.22,132.21,3.782]
[1725548058742,0.05005086,132.22,132.2,3.7822]
[1725548058944,0.05005086,132.22,132.19,0.05323439]
[1725548059337,0.05005086,132.22,132.21,3.782]
[1725548059738,0.05005086,132.22,132.19,0.05323439]
[1725548059937,0.05005086,132.22,132.21,3.782]
[1725548060448,0.05005086,132.22,132.2,3.7822]
[1725548060639,0.05005086,132.22,132.19,0.05323439]
[1725548060841,3.782,132.21,132.19,0.05323439]
[1725548062036,3.782,132.21,132.11,2.5836]
[1725548062037,42.98399275,132.22,132.12,2.8059]
[1725548062238,2.7205,132.21,132.12,2.8059]
[1725548062443,3.783,132.18,132.12,2.8059]
[1725548062639,2.7205,132.21,132.12,42.0359]
[1725548062836,39.23,132.24,132.14,39.23]
[1725548063043,0.05472515,132.2,132.18,0.05678392]
[1725548063343,0.04963483,132.2,132.18,0.04836566]
[1725548063746,3.83213483,132.2,132.18,0.04836566]
[1725548064438,0.04963483,132.2,132.18,0.04836566]
[1725548064838,0.04963483,132.2,132.19,3.7826]
[1725548065051,0.04963483,132.2,132.18,0.04836566]
[1725548065445,0.04963483,132.2,132.18,3.83116566]
[1725548066051,0.04963483,132.2,132.18,0.04836566]
[1725548066851,0.04963483,132.2,132.12,2.8059]
[1725548066852,39.23,132.2,132.1,3.81789258]
[1725548067044,2.688,132.19,132.11,2.834]
[1725548067554,39.23,132.18,132.11,6.6187]
[1725548067748,0.05195263,132.16,132.13,0.04853092]
[1725548068046,0.05195263,132.16,132.05,3.7863]
[1725548068047,39.23,132.15,132.05,3.7863]
[1725548068248,39.23,132.15,132.04,42.0354]
[1725548068550,39.23,132.15,132.07,3.786]
[1725548068551,3.7844,132.13,132.07,3.786]
[1725548068750,3.83232399,132.14,132.04,42.0354]
[1725548068947,0.05617621,132.1,132.08,0.05709633]
[1725548069649,3.7854,132.09,132.08,0.05709633]
[1725548070249,0.05617621,132.1,132.08,0.05709633]
[1725548071451,3.7854,132.09,132.08,0.05709633]
[1725548071754,0.05617621,132.1,132.02,3.82867942]